[Event "European Women-ch 2023"]
[Site "Petrovac"]
[Date "2023.03.19"]
[Round "2.6"]
[White "Calzetta Ruiz, Monica"]
[Black "Mashchenko, Tamila"]
[Result "1-0"]
[ECO "B33"]
[WhiteElo "2185"]
[BlackElo "1956"]
[Annotator "TA"]
[PlyCount "79"]
[EventDate "2023.03.15"]
[EventType "swiss"]
[EventCountry "MNE"]
[SourceTitle "playchess.com"]
[Source "ChessBase"]
[SourceQuality "1"]
[TimeControl "40/5400+30:1800+30"]

{[%evp 21,79,10,0,-4,16,12,10,13,16,4,56,44,85,72,158,127,157,136,184,171,281,273,281,116,292,294,289,263,260,266,267,273,275,260,412,399,362,399,381,372,437,335,463,439,431,412,481,526,445,352,673,652,970,981,1292,1286,1500,1495,1614,1605]} 1. e4 {[%emt 0:00:03]} c5 {[%emt 0:03:08]} 2. Nf3 {[%emt 0:00:08]} Nc6 {[%emt 0:00:29]} 3. d4 {[%emt 0:00:43]} cxd4 {[%emt 0:00:20]} 4. Nxd4 {[%emt 0:00:08]} Nf6 {[%emt 0:00:04]} 5. Nc3 {[%emt 0:00:31]} e5 {[%emt 0:00:09]} 6. Ndb5 {[%emt 0:00:40]} d6 {[%emt 0:00:07]} 7. Nd5 {[%emt 0:08:34]} Nxd5 {[%emt 0:01:04]} 8. exd5 {[%emt 0:00:07]} Nb8 {[%emt 0:00:03]} 9. c4 {[%emt 0:00:11]} Be7 {[%emt 0:00:59]} 10. Be2 {[%emt 0:00:40]} Nd7 {[%emt 0:00:57]} 11. O-O {[%emt 0:00:50]} O-O {[%emt 0:00:23]} 12. a4 {[%emt 0:04:33][%cal Ba2a4,Ba4a5][%mdl 32] B33: Sicilian: Pelikan and Sveshnikov Variations.} f5 {[%emt 0:13:47]} 13. a5 {[%emt 0:16:11]} a6 {[%emt 0:18:23]} 14. Nc3 {[%emt 0:01:12] The position is equal.} Bg5 {[%emt 0:22:21]} 15. b4 {[%emt 0:09:18] [#]} Bxc1 $146 {[%emt 0:07:41]} (15... e4 $11) ({Predecessor:} 15... e4 16. Re1 Ne5 17. Bf1 Bd7 18. c5 Bxc1 19. Rxc1 Qg5 20. Re3 Ng4 21. Rg3 Qh4 22. Rxg4 fxg4 23. Nxe4 {0-1 Kobas,A (2321)-Miljkovic,M (2427) BIH-chT1 Neum 2008 (6.5)}) 16. Qxc1 {[%emt 0:01:30]} (16. Rxc1 $5 {[%cal Rc3a4]} e4 17. c5 $14) 16... Qh4 {[%emt 0:00:50]} 17. f4 {[%emt 0:08:46]} e4 {[%emt 0:03:43]} (17... Re8 $142) 18. Ra3 {[%emt 0:03:28]} Qf6 {[%emt 0:06:37]} 19. Qe3 {[%emt 0:03:36] Dodges Qd4. White is more active.} Rd8 {[%emt 0:02:53]} (19... Qd8 $16 {might work better.}) 20. Na4 {[%emt 0:03:11]} Nf8 {[%emt 0:02:10]} (20... h6 {was worth a try.} 21. Rd1 Qf7) 21. Nb6 $18 {[%emt 0:06:23]} Rb8 {[%emt 0:00:07] [#]} 22. Rc3 {[%emt 0:01:12]} (22. c5 $1 $18 {[%cal Rc5c6] is the precise move to win.}) 22... Bd7 {[%emt 0:02:16]} (22... Nd7 $16) 23. Rfc1 {[%emt 0:02:56] Black must now prevent c5.} Ng6 {[%emt 0:00:34] [#]} 24. c5 $1 {[%emt 0:01:03]} dxc5 {[%emt 0:01:39]} 25. bxc5 {[%emt 0:02:02]} ({Less strong is} 25. Rxc5 Be8 $16) 25... Ne7 {[%emt 0:00:14]} (25... Bb5 $2 26. Bxb5 axb5 27. c6 $18) 26. Bc4 {[%emt 0:03:43] Hoping for c6.} Kh8 {[%emt 0:00:37]} 27. Rb3 {[%emt 0:01:19]} Bb5 {[%emt 0:04:08]} (27... Be8 {was necessary.} 28. Rd1 Bf7) 28. Bxb5 {[%emt 0:02:08]} axb5 {[%emt 0:00:03]} 29. d6 {[%emt 0:00:40]} Nc6 {[%emt 0:00:19]} 30. Rxb5 {[%emt 0:00:51]} Qd4 {[%emt 0:02:58]} 31. Kf2 {[%emt 0:00:30]} g5 {[%emt 0:01:31]} 32. g3 {[%emt 0:03:15]} gxf4 {[%emt 0:01:14]} 33. gxf4 {[%emt 0:00:04]} Qf6 {[%emt 0:02:12]} 34. Nd5 {[%emt 0:03:43]} Qh4+ {[%emt 0:00:29]} 35. Qg3 {[%emt 0:00:05]} Qxg3+ {[%emt 0:00:20]} (35... e3+ 36. Kxe3 Qh6) 36. hxg3 {[%emt 0:00:10] White is clearly winning.} Nd4 {[%emt 0:00:12]} 37. Rb6 {[%emt 0:01:07]} Kg8 {[%emt 0:01:29]} 38. Rcb1 {[%emt 0:01:52]} Ne6 {[%emt 0:01:02]} 39. c6 {[%emt 0:03:14][%cal Bc5c6,Bc6c7][%mdl 32]} Rxd6 {[%emt 0:00:13]} 40. c7 {[%emt 0:00:00] Black got outplayed after the opening.   Weighted Error Value: White=0.20 (precise) /Black=0.69} 1-0

[Event "European Women-ch 2023"]
[Site "Petrovac"]
[Date "2023.03.19"]
[Round "2.7"]
[White "Krasteva, Beloslava"]
[Black "Fataliyeva, Ulviyya"]
[Result "1/2-1/2"]
[ECO "E01"]
[WhiteElo "2292"]
[BlackElo "2427"]
[Annotator "TA"]
[PlyCount "118"]
[EventDate "2023.03.15"]
[EventType "swiss"]
[EventCountry "MNE"]
[SourceTitle "playchess.com"]
[Source "ChessBase"]
[SourceQuality "1"]
[TimeControl "40/5400+30:1800+30"]

{[%evp 14,118,52,61,48,46,30,36,30,0,0,-16,-15,-15,-16,-22,-24,-38,-29,-52,-10,-5,-26,-52,-63,-58,-51,-63,-32,-53,-58,-62,-7,-14,-10,-16,0,0,0,0,0,0,0,0,0,0,0,-38,-6,-20,-18,-24,-21,-51,-6,-7,3,4,8,5,185,0,0,-11,0,0,0,0,0,0,0,0,27,0,80,0,0,0,0,0,0,0,0,8,22,0,0,0,0,0,0,0,0,0,0,0,0,0,0,0,0,0,0,0,0,0,0]} 1. c4 {[%emt 0:00:06]} e6 {[%emt 0:00:28]} 2. Nf3 {[%emt 0:00:20]} d5 {[%emt 0:01:31]} 3. g3 {[%emt 0:00:25]} c6 {[%emt 0:03:42]} 4. Bg2 {[%emt 0:01:06]} Bd6 {[%emt 0:00:45]} 5. O-O {[%emt 0:06:08]} Nf6 {[%emt 0:04:36]} 6. d4 {[%emt 0:01:30]} O-O {[%emt 0:03:30] 6...0-0 is better than 6...Nbd7.} 7. Nc3 {[%emt 0:02:03]} Ne4 {[%emt 0:05:46]} 8. Nxe4 {[%emt 0:16:25]} dxe4 {[%emt 0:00:37] E01: Catalan: Early deviations.} 9. Ne1 {[%emt 0:00:25]} f5 {[%emt 0:01:58]} 10. f3 {[%emt 0:00:03] [#]} e5 $146 {[%emt 0:16:44] White is slightly better.} ({Predecessor:} 10... exf3 11. Nxf3 Nd7 12. Bf4 Qc7 13. e3 e5 14. Nxe5 Nxe5 15. c5 Nf7 16. cxd6 Nxd6 17. Qb3+ Kh8 18. e4 Qe7 19. Qa3 {1-0 Glavina,P (2445)-Solano Lasierra,J (2188) Aragon-chT Honor Titulo 2013 (8.14)}) 11. c5 {[%emt 0:15:54]} Be7 {[%emt 0:01:51]} 12. fxe4 {[%emt 0:01:20]} Qxd4+ {[%emt 0:06:08]} 13. Qxd4 {[%emt 0:00:31]} exd4 {[%emt 0:00:04]} 14. Nd3 {[%emt 0:03:05]} fxe4 {[%emt 0:05:06]} 15. Rxf8+ {[%emt 0:00:55]} Bxf8 {[%emt 0:00:06]} 16. Bxe4 {[%emt 0:00:04]} Nd7 {[%emt 0:00:16]} 17. b4 {[%emt 0:03:53]} a5 {[%emt 0:13:58]} 18. Bd2 {[%emt 0:07:15]} Nf6 {[%emt 0:04:11]} 19. Bf3 {[%emt 0:00:21]} axb4 {[%emt 0:00:34]} 20. Bxb4 {[%emt 0:00:14]} Bf5 {[%emt 0:03:27]} 21. a3 {[%emt 0:05:06]} Nd7 {[%emt 0:01:48]} 22. Rc1 {[%emt 0:04:00]} Bxd3 {[%emt 0:06:08]} (22... Re8 $15) 23. exd3 $11 {[%emt 0:00:01]} Re8 {[%emt 0:00:01]} 24. Bg4 {[%emt 0:03:14]} Nf6 {[%emt 0:01:17]} (24... Ne5 $5 {[%cal Re5g4]} 25. Re1 Re7 $11) 25. Bh3 {[%emt 0:01:12]} g6 {[%emt 0:02:20]} 26. Rc4 {[%emt 0:06:46]} Bh6 {[%emt 0:00:11]} 27. Kf1 {[%emt 0:01:47]} Be3 {[%emt 0:00:13]} 28. Be1 {[%emt 0:01:29]} Nd5 {[%emt 0:03:35]} 29. Bg2 {[%emt 0:01:28]} Nc7 {[%emt 0:03:26]} 30. Ke2 {[%emt 0:05:56]} Na6 {[%emt 0:07:26]} 31. Kd1 {[%emt 0:01:09]} Re5 {[%emt 0:00:23]} 32. Bb4 {[%emt 0:00:51]} Bg1 {[%emt 0:01:19]} 33. Be4 {[%emt 0:05:55]} Nc7 {[%emt 0:00:32]} 34. Rc2 {[%emt 0:01:51]} Ne6 {[%emt 0:00:50]} 35. a4 {[%emt 0:02:34]} Ng5 {[%emt 0:01:38]} 36. Bg2 {[%emt 0:00:48]} Re3 $2 {[%emt 0:00:52] [#]} (36... Ne6 $11 {and Black has nothing to worry.}) 37. Bf1 $2 {[%emt 0:00:53]} (37. Bd2 $1 $18 {[%cal Og2c6] Bxc6! is the strong threat.} Rxd3 38. Bf1 (38. Ke2 $2 Rb3 $17)) 37... Rf3 {[%emt 0:00:28]} 38. Ke1 {[%emt 0:00:59]} Rf5 {[%emt 0:00:12][%cal Og1h2]} 39. h4 {[%emt 0:01:07]} Nf3+ {[%emt 0:00:28]} 40. Kd1 {[%emt 0:00:00]} Ne5 {[%emt 0:00:00]} 41. Be2 {[%emt 0:03:42]} Rf2 {[%emt 0:09:14]} 42. Be1 {[%emt 0:02:27]} Rf7 {[%emt 0:06:41]} 43. Rb2 {[%emt 0:01:26]} h5 {[%emt 0:00:07]} (43... Kg7 $11 {remains equal.}) 44. a5 {[%emt 0:01:23]} ({White should play} 44. Bd2 $16) 44... Be3 {[%emt 0:01:51] The position is equal.} 45. Bd2 {[%emt 0:09:30]} Bxd2 {[%emt 0:00:59]} 46. Kxd2 {[%emt 0:00:01][%mdl 4096] Endgame KRB-KRN} Kf8 {[%emt 0:02:12]} 47. Rb4 {[%emt 0:00:45]} Rd7 {[%emt 0:00:19]} 48. Bf1 {[%emt 0:01:04]} Ke8 {[%emt 0:01:51]} 49. Bh3 {[%emt 0:00:55]} Rf7 {[%emt 0:03:07]} 50. Ke2 {[%emt 0:02:41]} Rf2+ {[%emt 0:00:36][%mdl 64] [#] Decoy} 51. Kxf2 {[%emt 0:06:40] Intending Ke2 and mate.} Nxd3+ {[%emt 0:00:02]} 52. Ke2 {[%emt 0:00:25]} Nxb4 {[%emt 0:00:02] KB-KN} 53. Bc8 {[%emt 0:00:30]} Kd8 {[%emt 0:04:50]} 54. Bxb7 {[%emt 0:00:44]} Kc7 {[%emt 0:00:01]} 55. a6 {[%emt 0:00:31]} Kb8 {[%emt 0:00:10]} 56. Kd2 {[%emt 0:01:59]} Kc7 {[%emt 0:07:12]} 57. Ke2 {[%emt 0:00:18]} Kb8 {[%emt 0:00:40]} 58. Kd2 {[%emt 0:00:08]} Ka7 {[%emt 0:00:18]} 59. Ke2 {[%emt 0:03:07]} Kb8 {[%emt 0:00:04] Weighted Error Value: White=0.12 (very precise) /Black=0.17 (very precise)} 1/2-1/2

[Event "European Women-ch 2023"]
[Site "Petrovac"]
[Date "2023.03.19"]
[Round "2.7"]
[White "Sandu, Mihaela"]
[Black "Savina, Anastasia"]
[Result "1/2-1/2"]
[ECO "C95"]
[WhiteElo "2211"]
[BlackElo "2345"]
[Annotator "TA"]
[PlyCount "98"]
[EventDate "2023.03.15"]
[EventType "swiss"]
[EventCountry "MNE"]
[SourceTitle "playchess.com"]
[Source "ChessBase"]
[SourceQuality "1"]
[TimeControl "40/5400+30:1800+30"]

{[%evp 29,98,25,35,0,4,-50,-38,-80,25,-85,-95,-83,-66,-57,-60,-77,-18,-32,-21,-33,-38,-24,-8,-72,-63,-62,-32,-42,-14,-43,-41,-41,-11,-68,-75,-133,-45,-47,-17,-17,-13,-13,-13,-18,-4,-2,-2,-8,-8,-8,-4,-5,-8,-8,0,0,0,0,0,-8,-8,-14,-8,-14,-8,-14,0,-15,0,-16,0]} 1. e4 {[%emt 0:00:06]} e5 {[%emt 0:00:14]} 2. Nf3 {[%emt 0:00:06]} Nc6 {[%emt 0:00:06]} 3. Bb5 {[%emt 0:00:05][%cal Bf1b5,Bb5a4,Ba4b3][%mdl 32]} a6 {[%emt 0:00:36]} 4. Ba4 {[%emt 0:00:05]} Nf6 {[%emt 0:00:04]} 5. O-O {[%emt 0:00:12]} Be7 {[%emt 0:00:14]} 6. Re1 {[%emt 0:00:20]} b5 {[%emt 0:00:19]} 7. Bb3 {[%emt 0:00:05]} d6 {[%emt 0:00:08]} 8. c3 {[%emt 0:00:06]} O-O {[%emt 0:00:05]} 9. h3 {[%emt 0:00:18]} Nb8 {[%emt 0:00:18]} 10. d4 {[%emt 0:00:10]} Nbd7 {[%emt 0:00:04]} 11. Nbd2 {[%emt 0:01:05][%cal Bb1d2,Bd2f1,Bf1g3][%mdl 32]} Bb7 {[%emt 0:00:27]} 12. Bc2 {[%emt 0:00:32]} Re8 {[%emt 0:00:31]} 13. Nf1 {[%emt 0:00:25]} Bf8 {[%emt 0:00:14]} 14. Ng3 {[%emt 0:00:09]} g6 {[%emt 0:00:10]} 15. a4 {[%emt 0:00:32]} Bg7 $1 {[%emt 0:05:29][%mdl 4] now scores much better than the old 15...c5.} 16. b3 {[%emt 0:11:19] C95: Closed Ruy Lopez: Breyer Variation with 10 d4.} (16. Bg5 {keeps more tension.} c5 17. Qd2 cxd4 18. cxd4 d5 19. exd5 exd4 20. Nxd4 Ne5 21. Bb3) 16... d5 {[%emt 0:05:43]} 17. exd5 {[%emt 0:13:34] [#]} (17. dxe5 $11 Nxe4 18. Nxe4 dxe4 19. Bg5) 17... exd4 $146 {[%emt 0:07:37]} ({Predecessor:} 17... Nxd5 18. Bb2 exd4 19. cxd4 N7f6 20. axb5 axb5 21. Bd3 Rxe1+ 22. Qxe1 Nf4 23. Bxb5 Nxh3+ 24. gxh3 Bxf3 {0-1 Dwyer,D (1855)-Trifan,A (2290) Wch U14 Porto Carras 2018 (1)}) 18. axb5 {[%emt 0:11:09] Black is slightly better.} Nxd5 {[%emt 0:29:18]} (18... Rxe1+ $17 19. Nxe1 dxc3 20. bxa6 Bxa6) 19. Rxe8+ {[%emt 0:10:06]} (19. Bg5 $11 Qb8 20. bxa6 (20. cxd4 axb5 21. Rxa8 Qxa8 $15) 20... Bxa6 21. cxd4) 19... Qxe8 $17 {[%emt 0:00:36]} 20. cxd4 {[%emt 0:00:15]} axb5 {[%emt 0:31:02]} (20... Nc3 {seems wilder.} 21. Qd3 Nxb5 22. Ne4 Nf6) 21. Rxa8 {[%emt 0:05:40]} Qxa8 {[%emt 0:00:09]} 22. Bd2 {[%emt 0:00:24] Prevents Nc3} c5 {[%emt 0:11:19]} (22... N5f6 $17) 23. dxc5 $11 {[%emt 0:15:45]} Nxc5 {[%emt 0:00:06]} 24. Qe2 {[%emt 0:00:36]} b4 {[%emt 0:03:00]} 25. Qc4 {[%emt 0:03:09][%csl LRb4,LRc5]} Ne6 {[%emt 0:01:31]} 26. Ng5 {[%emt 0:01:48]} (26. Be4 $11 {keeps the balance.}) 26... Nxg5 $17 {[%emt 0:01:49]} 27. Bxg5 {[%emt 0:00:06]} Qa1+ {[%emt 0:01:23]} 28. Kh2 {[%emt 0:00:58]} Qe5 {[%emt 0:00:41]} 29. Qb5 {[%emt 0:12:15]} Qxg5 {[%emt 0:00:33]} 30. Qxb7 {[%emt 0:00:05]} h5 {[%emt 0:00:24][%cal Og7e5,Bh7h5,Bh5h4][%mdl 32] [#] Threatens to win with ...Be5!} 31. Be4 {[%emt 0:01:37]} (31. Ne4 $11 Qe5+ 32. g3) 31... Nc3 $15 {[%emt 0:00:28] Strongly threatening ...Be5.} 32. Bf3 {[%emt 0:09:04]} (32. Qa8+ $142 Kh7 33. Bd3) 32... Be5 {[%emt 0:01:12]} (32... Bd4 $17 {White must now prevent ...Qe5.} 33. Nh1 h4 34. Qc8+ Kg7) 33. Kg1 $1 {[%emt 0:01:16]} h4 {[%emt 0:00:32]} 34. Nf1 {[%emt 0:00:05] The position is equal.} Qf4 {[%emt 0:00:33]} 35. Qc8+ {[%emt 0:01:16]} Kg7 {[%emt 0:00:05]} 36. Qg4 {[%emt 0:00:05]} Nb5 {[%emt 0:00:56]} 37. Qxf4 {[%emt 0:00:19]} Bxf4 $11 {[%emt 0:00:02][%mdl 4096] Endgame KBN-KBN} 38. Bd5 {[%emt 0:00:46]} Nc3 {[%emt 0:00:45]} 39. Bf3 {[%emt 0:01:16]} Kf6 {[%emt 0:00:37]} 40. g3 {[%emt 0:00:00]} hxg3 {[%emt 0:00:00]} 41. fxg3 {[%emt 0:01:18]} Bc1 {[%emt 0:05:36]} 42. Kg2 {[%emt 0:01:01]} Ke5 {[%emt 0:02:07]} 43. Bc6 {[%emt 0:04:47]} Ne4 {[%emt 0:05:44]} 44. Be8 {[%emt 0:05:52]} Nd6 {[%emt 0:00:18]} 45. Bc6 {[%emt 0:00:03]} Kd4 {[%emt 0:14:41]} 46. h4 {[%emt 0:04:19]} Kc3 {[%emt 0:03:14]} 47. Bd5 {[%emt 0:00:05]} Kd4 {[%emt 0:00:24]} 48. Bc6 {[%emt 0:00:07]} Kc3 {[%emt 0:02:15]} 49. Bd5 {[%emt 0:00:05]} Kd4 {[%emt 0:00:05] Weighted Error Value: White=0.19 (very precise) /Black=0.19 (very precise)} 1/2-1/2

[Event "European Women-ch 2023"]
[Site "Petrovac"]
[Date "2023.03.19"]
[Round "2.7"]
[White "Bluebaum, Johanna"]
[Black "Jarocka, Liwia"]
[Result "1/2-1/2"]
[ECO "E51"]
[WhiteElo "1954"]
[BlackElo "2181"]
[Annotator "TA"]
[PlyCount "105"]
[EventDate "2023.03.15"]
[EventType "swiss"]
[EventCountry "MNE"]
[SourceTitle "playchess.com"]
[Source "ChessBase"]
[SourceQuality "1"]
[TimeControl "40/5400+30:1800+30"]

{[%evp 13,105,7,6,9,7,0,22,25,31,43,50,37,120,27,34,24,49,0,7,0,4,0,0,0,141,78,185,47,87,0,0,0,0,0,93,89,155,156,237,215,291,277,271,235,247,170,166,172,164,150,169,133,151,141,133,130,159,161,178,171,171,163,168,158,178,163,178,163,266,235,298,315,295,187,282,282,280,273,248,185,179,8,69,0,178,178,178,178,178,178,178,178,178,0]} 1. d4 {[%emt 0:00:02]} Nf6 {[%emt 0:00:11]} 2. c4 {[%emt 0:00:05]} e6 {[%emt 0:00:07]} 3. Nc3 {[%emt 0:00:05]} Bb4 {[%emt 0:00:13]} 4. e3 {[%emt 0:00:07]} O-O {[%emt 0:00:12]} 5. Bd2 {[%emt 0:00:16]} d5 {[%emt 0:01:44]} 6. Nf3 {[%emt 0:00:16]} b6 {[%emt 0:05:06]} 7. cxd5 {[%emt 0:00:14]} exd5 {[%emt 0:00:13]} 8. Rc1 {[%emt 0:01:41] E51: Nimzo-Indian: Rubinstein: 4...0-0 5 Nf3 d5.} Re8 {[%emt 0:02:21]} 9. Ne5 {[%emt 0:06:06]} a6 {[%emt 0:05:19]} 10. Bd3 {[%emt 0:02:13] The position is equal.} c5 {[%emt 0:01:08]} 11. O-O {[%emt 0:01:06]} Bb7 {[%emt 0:02:48]} 12. a3 {[%emt 0:13:47] [#]} Ba5 $146 {[%emt 0:10:39]} (12... Bxc3 $14 13. Bxc3 c4) ({Predecessor:} 12... Bxc3 13. Bxc3 c4 14. Bb1 Nc6 15. f4 b5 16. Be1 Ne4 17. Qh5 Qc7 18. Bxe4 dxe4 {1-0 Harika,D (2492)-Kosteniuk,A (2517) Shaoxing (Women) op 2019 (8)}) 13. Be1 {[%emt 0:05:56] White is much more active. The black rooks are badly placed.} (13. b4 $1 $16 {[%cal Rb4a5]} cxb4 14. Na4 bxa3 15. Bxa5 bxa5 16. Qb3) 13... b5 {[%emt 0:03:46]} 14. f4 {[%emt 0:01:23]} Bb6 {[%emt 0:06:00]} 15. Bb1 {[%emt 0:01:55]} (15. Ne2 $5 {[%cal Rd4c5]} c4 16. Bf5 $11) 15... cxd4 {[%emt 0:06:55]} 16. exd4 {[%emt 0:00:06]} Qd6 {[%emt 0:07:52]} 17. Bh4 {[%emt 0:02:34]} Nbd7 {[%emt 0:08:49][%cal Rd7e5]} 18. Kh1 {[%emt 0:01:43]} Ne4 {[%emt 0:03:34]} (18... Rac8 $11) 19. Qh5 {[%emt 0:02:47]} (19. Nxe4 $142 dxe4 20. Re1) 19... g6 {[%emt 0:08:29] [#]} (19... Rf8 $16 {is a better defense.}) 20. Qd1 {[%emt 0:08:28]} ({White must play} 20. Nxe4 $1 $18 dxe4 21. Qh6) 20... Bd8 {[%emt 0:02:59]} 21. Bxd8 {[%emt 0:01:19]} (21. Nxe4 $16 dxe4 22. Ba2) 21... Raxd8 $11 {[%emt 0:00:13]} 22. Ba2 {[%emt 0:01:33] aiming for Nxe4.} Nxc3 {[%emt 0:01:02]} 23. Rxc3 {[%emt 0:00:17]} Nf6 {[%emt 0:03:34]} (23... f6 $11) 24. f5 $16 {[%emt 0:03:27] Strongly threatening fxg6.} Ne4 {[%emt 0:00:39]} ({Black should try} 24... Rxe5 25. dxe5 Qxe5) 25. fxg6 $1 {[%emt 0:01:35]} fxg6 {[%emt 0:00:49]} (25... hxg6 $16 26. Nxf7 Nxc3 27. bxc3 Qc7) 26. Re3 $18 {[%emt 0:04:35]} Rxe5 {[%emt 0:03:42]} 27. dxe5 {[%emt 0:00:50]} Qxe5 {[%emt 0:00:04][%cal Oe4f2]} 28. Qf3 {[%emt 0:01:36] Dodges Nf2+} Kh8 {[%emt 0:00:55]} 29. Bb1 {[%emt 0:07:48]} Qxb2 {[%emt 0:02:29]} 30. Qf7 {[%emt 0:09:19] Qe7 is the strong threat.} Qg7 {[%emt 0:01:27]} 31. Bxe4 {[%emt 0:03:14]} dxe4 {[%emt 0:01:51]} 32. h3 {[%emt 0:01:06]} Qxf7 {[%emt 0:04:12]} 33. Rxf7 $16 {[%emt 0:00:05][%mdl 4096] Endgame KRR-KRB} Bd5 {[%emt 0:00:19]} 34. Ra7 {[%emt 0:01:50]} Re8 {[%emt 0:01:24]} 35. Rxa6 {[%emt 0:01:28]} Bc4 {[%emt 0:00:24]} 36. Ra7 {[%emt 0:01:28]} Bd3 {[%emt 0:01:35]} 37. Kh2 {[%emt 0:08:30]} Kg8 {[%emt 0:00:57]} 38. Kg3 {[%emt 0:00:37]} Re5 {[%emt 0:03:26]} 39. h4 {[%emt 0:01:51] Against Rg5+} Rc5 {[%emt 0:00:32] [#]} 40. Re1 $1 {[%emt 0:00:00]} Rc3 {[%emt 0:00:00]} (40... g5 $142 41. hxg5 Rxg5+ 42. Kf2 Rc5) 41. Kf4 $18 {[%emt 0:02:55]} Rc5 {[%emt 0:02:31]} 42. g4 {[%emt 0:01:11]} h6 {[%emt 0:01:42]} 43. Ke3 {[%emt 0:01:08]} Rc2 {[%emt 0:03:06]} (43... g5 $142 44. hxg5 Rxg5) 44. g5 {[%emt 0:04:42]} hxg5 {[%emt 0:05:42]} 45. hxg5 {[%emt 0:00:13]} Rc5 {[%emt 0:00:13]} 46. Rg1 {[%emt 0:04:33]} Rc8 {[%emt 0:02:27]} 47. Kd4 $2 {[%emt 0:02:23]} (47. Ra6 $18) 47... Rd8+ {[%emt 0:01:10]} (47... Rc4+ $11 48. Ke3 Rc3) 48. Ke3 {[%emt 0:01:19]} (48. Kc3 $14) 48... Rc8 $1 {[%emt 0:00:36]} 49. Rh1 {[%emt 0:00:26] White is clearly better.} Rc5 {[%emt 0:01:26]} 50. Rhh7 {[%emt 0:05:02]} Rxg5 {[%emt 0:01:22]} 51. Rag7+ {[%emt 0:02:50]} Kf8 {[%emt 0:00:06]} 52. Rf7+ {[%emt 0:00:06][%mdl 1024] White has strong compensation.} Kg8 {[%emt 0:00:34]} 53. Rfg7+ $2 {[%emt 0:00:14] Weighted Error Value: White=0.26 (precise) /Black=0.33} ({White should play} 53. Rhg7+ $18 Kh8 54. Rh7+ Kg8 55. Rfg7+ Kf8 56. Rb7) 1/2-1/2

[Event "European Women-ch 2023"]
[Site "Petrovac"]
[Date "2023.03.19"]
[Round "2.8"]
[White "Wagner, Dinara"]
[Black "Schulze, Lara"]
[Result "1-0"]
[ECO "D50"]
[WhiteElo "2411"]
[BlackElo "2277"]
[Annotator "TA"]
[PlyCount "67"]
[EventDate "2023.03.15"]
[EventType "swiss"]
[EventCountry "MNE"]
[SourceTitle "playchess.com"]
[Source "ChessBase"]
[SourceQuality "1"]
[TimeControl "40/5400+30:1800+30"]

{[%evp 12,67,-37,-20,-8,-8,6,14,21,0,0,-2,10,14,23,20,50,49,45,29,16,22,84,88,140,139,131,137,159,162,151,145,154,161,177,178,231,230,223,218,211,210,210,203,362,335,464,462,525,520,1793,1716,1817,1744,4814,2889,5073,2628]} 1. d4 {[%emt 0:00:08]} d5 {[%emt 0:00:06]} 2. c4 {[%emt 0:00:00]} e6 {[%emt 0:00:04]} 3. Nc3 {[%emt 0:00:02]} Nf6 {[%emt 0:00:06]} 4. Bg5 {[%emt 0:00:18]} c5 {[%emt 0:00:13]} 5. cxd5 {[%emt 0:13:11]} cxd4 {[%emt 0:00:13]} 6. Qa4+ {[%emt 0:01:40]} Qd7 {[%emt 0:17:54]} 7. Qxd4 {[%emt 0:02:08][%cal Oe2e4] [#] e4! is the strong threat.} Nxd5 {[%emt 0:17:03] D50: Queen's Gambit Declined: Dutch-Peruvian Gambit.} (7... exd5 $2 8. Bxf6 gxf6 9. Rd1 $16 (9. Qxd5 Bb4 $14) (9. Qxf6 Rg8 $16) (9. Nxd5 Bb4+ 10. Qxb4 Qxd5 $16)) (7... Nc6 $5 {[%cal Rc6d4]} 8. Qa4 Nxd5 $11) 8. Nxd5 {[%emt 0:04:06]} Qxd5 {[%emt 0:07:58]} 9. Qxd5 {[%emt 0:06:04]} exd5 {[%emt 0:00:02] The position is equal.} 10. Nf3 {[%emt 0:01:14] [#]} Nc6 $146 {[%emt 0:00:42]} ({Predecessor:} 10... Bb4+ 11. Bd2 Bxd2+ 12. Kxd2 Nc6 13. e3 a6 14. Be2 Be6 15. Rhd1 Rc8 16. Rac1 Ke7 {1-0 Stern,R (2527)-Grassi,F (1898) Berlin Werner Ott op 2014 (1)}) 11. g3 {[%emt 0:16:47]} Bg4 {[%emt 0:11:25]} 12. Bg2 {[%emt 0:01:12]} Bb4+ {[%emt 0:07:26]} 13. Bd2 {[%emt 0:01:09]} O-O {[%emt 0:00:26]} 14. Bxb4 {[%emt 0:03:54]} Nxb4 {[%emt 0:02:13]} 15. Kd2 {[%emt 0:00:16] Against Nc2} Rac8 {[%emt 0:02:46] [#] Threatens to win with ...Rc2+.} 16. Rhc1 {[%emt 0:04:36] Wards off Rc2+} Rxc1 {[%emt 0:06:34]} (16... Nc6 $11) 17. Rxc1 $16 {[%emt 0:00:41] Black is on the road to losing.} Nxa2 {[%emt 0:00:52]} (17... Nc6 $142) 18. Ra1 {[%emt 0:00:50]} Nb4 {[%emt 0:00:07]} 19. Rxa7 {[%emt 0:00:25]} Rb8 {[%emt 0:00:16]} 20. Ra4 {[%emt 0:04:19]} Bxf3 {[%emt 0:03:43]} 21. Bxf3 $18 {[%emt 0:00:09][%mdl 4096] Endgame KRB-KRN} ({Don't take} 21. exf3 $6 Nc6 $14) 21... Nc6 {[%emt 0:00:33]} 22. Bxd5 {[%emt 0:01:16] White is more active.} Rd8 {[%emt 0:00:42]} 23. e4 {[%emt 0:00:13]} Ne7 {[%emt 0:00:12]} (23... Rd7 $142 24. Ra8+ Nd8) 24. Ke3 {[%emt 0:02:04]} Nxd5+ {[%emt 0:00:10]} 25. exd5 {[%emt 0:00:02] KR-KR} Kf8 {[%emt 0:00:09]} 26. Kd4 {[%emt 0:01:14] aiming for Rb4.} Ke7 {[%emt 0:00:30]} 27. Rb4 {[%emt 0:02:16]} Rd7 {[%emt 0:00:13]} (27... Rb8 28. Rb3 Kd7) 28. Rb6 {[%emt 0:01:13]} f6 {[%emt 0:02:00]} 29. f4 {[%emt 0:02:44][%cal Bf2f4,Bf4f5][%mdl 32] White is clearly winning.} Kf7 {[%emt 0:00:53]} 30. f5 {[%emt 0:01:37]} Rc7 {[%emt 0:00:29]} (30... Ke7 $142 31. g4 Rd8 32. Rxb7+ Kd6) 31. d6 {[%emt 0:00:49]} Rd7 {[%emt 0:00:09]} 32. Kd5 {[%emt 0:00:08]} h5 {[%emt 0:00:55]} 33. Rb4 {[%emt 0:02:32] Rb3 would be deadly.} Ke8 {[%emt 0:00:48]} 34. Ke6 {[%emt 0:00:20] Weighted Error Value: White=0.03 (flawless) /Black=0.34} 1-0